[Event "Titled Tuesday Blitz June 6 Late 2023"]
[White "Zakhartsov, Vladimir"]
[Black "Martinez Alcantara, Jose Eduardo"]
[WhiteFideId "4145097"]
[BlackFideId "3805662"]
[WhiteElo "2508"]
[BlackElo "2711"]
[Result "1/2-1/2"]
[Round "4"]
[TimeControl "180+2"]
[Date "2023.06.07"]
[WhiteClock "0:00:09"]
[BlackClock "0:00:07"]
[Board "3"]

1. d4 {[%clk 0:03:00]}  Nf6 {[%clk 0:02:59]} 2. c4 {[%clk 0:03:00]}  e6 {[%clk 0:03:00]} 3. Nf3 {[%clk 0:03:00]}  Bb4+ {[%clk 0:03:00]} 4. Bd2 {[%clk 0:02:58]}  c5 {[%clk 0:03:01]} 5. Bxb4 {[%clk 0:02:54]}  cxb4 {[%clk 0:03:02]} 6. e3 {[%clk 0:02:46]}  b6 {[%clk 0:03:01]} 7. Be2 {[%clk 0:02:45]}  a5 {[%clk 0:03:01]} 8. O-O {[%clk 0:02:43]}  Bb7 {[%clk 0:03:02]} 9. a3 {[%clk 0:02:43]}  Na6 {[%clk 0:03:02]} 10. Ne1 {[%clk 0:02:38]}  O-O {[%clk 0:03:01]} 11. Nd3 {[%clk 0:02:36]}  Qe7 {[%clk 0:03:01]} 12. Qb3 {[%clk 0:02:33]}  d5 {[%clk 0:03:00]} 13. axb4 {[%clk 0:02:25]}  dxc4 {[%clk 0:02:47]} 14. Qxc4 {[%clk 0:02:26]}  Nxb4 {[%clk 0:02:44]} 15. Nxb4 {[%clk 0:02:24]}  axb4 {[%clk 0:02:44]} 16. Nd2 {[%clk 0:02:22]}  Rac8 {[%clk 0:02:43]} 17. Qd3 {[%clk 0:02:08]}  e5 {[%clk 0:02:40]} 18. Ra7 {[%clk 0:01:51]}  Rfd8 {[%clk 0:02:31]} 19. Nb3 {[%clk 0:01:32]}  Rc7 {[%clk 0:02:16]} 20. Qb5 {[%clk 0:01:28]}  Bd5 {[%clk 0:02:11]} 21. Rxc7 {[%clk 0:01:18]}  Qxc7 {[%clk 0:02:12]} 22. dxe5 {[%clk 0:01:17]}  Qxe5 {[%clk 0:02:10]} 23. Nd4 {[%clk 0:01:16]}  Qd6 {[%clk 0:02:02]} 24. Rc1 {[%clk 0:01:08]}  g6 {[%clk 0:02:02]} 25. h3 {[%clk 0:01:08]}  Ra8 {[%clk 0:01:56]} 26. Bf3 {[%clk 0:01:06]}  Ra5 {[%clk 0:01:52]} 27. Qe2 {[%clk 0:01:00]}  Rc5 {[%clk 0:01:50]} 28. Ra1 {[%clk 0:00:59]}  Ra5 {[%clk 0:01:46]} 29. Rc1 {[%clk 0:00:58]}  Rc5 {[%clk 0:01:31]} 30. Rd1 {[%clk 0:00:58]}  Qc7 {[%clk 0:01:21]} 31. Bxd5 {[%clk 0:00:56]}  Nxd5 {[%clk 0:01:22]} 32. Qf3 {[%clk 0:00:52]}  Rc1 {[%clk 0:01:13]} 33. Nb3 {[%clk 0:00:48]}  Rxd1+ {[%clk 0:01:12]} 34. Qxd1 {[%clk 0:00:49]}  Qc4 {[%clk 0:01:11]} 35. Nd4 {[%clk 0:00:48]}  Nf6 {[%clk 0:01:04]} 36. Qc2 {[%clk 0:00:44]}  Qc5 {[%clk 0:01:01]} 37. f3 {[%clk 0:00:33]}  Qe5 {[%clk 0:00:39]} 38. Kf2 {[%clk 0:00:32]}  h5 {[%clk 0:00:39]} 39. Qc4 {[%clk 0:00:19]}  Nd5 {[%clk 0:00:30]} 40. Qd3 {[%clk 0:00:16]}  h4 {[%clk 0:00:26]} 41. Ne2 {[%clk 0:00:16]}  Qe6 {[%clk 0:00:14]} 42. Qd4 {[%clk 0:00:16]}  g5 {[%clk 0:00:13]} 43. e4 {[%clk 0:00:14]}  Nf4 {[%clk 0:00:10]} 44. Nxf4 {[%clk 0:00:12]}  gxf4 {[%clk 0:00:11]} 45. Qxb4 {[%clk 0:00:12]}  Qc6 {[%clk 0:00:08]} 46. Qd2 {[%clk 0:00:11]}  Qc5+ {[%clk 0:00:08]} 47. Kf1 {[%clk 0:00:11]}  Qe5 {[%clk 0:00:08]} 48. Qf2 {[%clk 0:00:08]}  Qf6 {[%clk 0:00:07]} 49. Kg1 {[%clk 0:00:07]}  Kg7 {[%clk 0:00:08]} 50. Kh2 {[%clk 0:00:07]}  b5 {[%clk 0:00:06]} 51. Qd2 {[%clk 0:00:07]}  Qg5 {[%clk 0:00:05]} 52. Qc3+ {[%clk 0:00:07]}  f6 {[%clk 0:00:04]} 53. Qd2 {[%clk 0:00:06]}  Qg3+ {[%clk 0:00:04]} 54. Kg1 {[%clk 0:00:06]}  Kg6 {[%clk 0:00:05]} 55. Qe2 {[%clk 0:00:05]}  Qg5 {[%clk 0:00:05]} 56. Qf2 {[%clk 0:00:04]}  Qe5 {[%clk 0:00:04]} 57. Kh2 {[%clk 0:00:03]}  Kg5 {[%clk 0:00:04]} 58. Qd2 {[%clk 0:00:03]}  Kg6 {[%clk 0:00:04]} 59. b4 {[%clk 0:00:04]}  Qg5 {[%clk 0:00:04]} 60. Qe2 {[%clk 0:00:03]}  Kf7 {[%clk 0:00:04]} 61. Qa2+ {[%clk 0:00:03]}  Kg7 {[%clk 0:00:04]} 62. Qd2 {[%clk 0:00:04]}  Kh6 {[%clk 0:00:04]} 63. Kg1 {[%clk 0:00:04]}  Kg7 {[%clk 0:00:05]} 64. Qd7+ {[%clk 0:00:04]}  Kf8 {[%clk 0:00:04]} 65. Qc8+ {[%clk 0:00:04]}  Ke7 {[%clk 0:00:04]} 66. Qb7+ {[%clk 0:00:04]}  Kd8 {[%clk 0:00:03]} 67. Qb6+ {[%clk 0:00:04]}  Kd7 {[%clk 0:00:04]} 68. Qd4+ {[%clk 0:00:03]}  Ke8 {[%clk 0:00:03]} 69. Qd6 {[%clk 0:00:03]}  Kf7 {[%clk 0:00:02]} 70. Qd5+ {[%clk 0:00:03]}  Qxd5 {[%clk 0:00:02]} 71. exd5 {[%clk 0:00:04]}  Ke7 {[%clk 0:00:03]} 72. Kf2 {[%clk 0:00:05]}  Kd6 {[%clk 0:00:04]} 73. Ke2 {[%clk 0:00:05]}  Kxd5 {[%clk 0:00:03]} 74. Kd3 {[%clk 0:00:06]}  Ke5 {[%clk 0:00:03]} 75. Kc3 {[%clk 0:00:06]}  Kd5 {[%clk 0:00:04]} 76. Kd3 {[%clk 0:00:07]}  f5 {[%clk 0:00:05]} 77. Kc3 {[%clk 0:00:07]}  Ke5 {[%clk 0:00:06]} 78. Kd3 {[%clk 0:00:08]}  Kd5 {[%clk 0:00:07]} 79. Kc3 {[%clk 0:00:08]}  Ke5 {[%clk 0:00:07]} 80. Kd3 {[%clk 0:00:09]}  Kd5 {[%clk 0:00:07]} 1/2-1/2


[Site "https://www.chess.com"]

[Event "Titled Tuesday Blitz June 6 Late 2023"]
[White "Elsa167"]
[Black "Sarana, Alexey"]
[BlackFideId "24133795"]
[WhiteElo "2889"]
[BlackElo "2714"]
[Result "0-1"]
[Round "4"]
[TimeControl "180+2"]
[Date "2023.06.07"]
[WhiteClock "0:00:41"]
[BlackClock "0:02:29"]
[Board "4"]

1. d4 {[%clk 0:03:00]}  Nf6 {[%clk 0:02:59]} 2. Nc3 {[%clk 0:02:58]}  e6 {[%clk 0:02:59]} 3. e4 {[%clk 0:02:57]}  d5 {[%clk 0:03:00]} 4. e5 {[%clk 0:02:58]}  Nfd7 {[%clk 0:02:59]} 5. f4 {[%clk 0:02:58]}  c5 {[%clk 0:03:00]} 6. Nf3 {[%clk 0:02:58]}  Nc6 {[%clk 0:03:00]} 7. Be3 {[%clk 0:02:59]}  Qb6 {[%clk 0:03:00]} 8. Na4 {[%clk 0:02:12]}  Qa5+ {[%clk 0:03:00]} 9. c3 {[%clk 0:02:06]}  cxd4 {[%clk 0:03:00]} 10. b4 {[%clk 0:02:04]}  Nxb4 {[%clk 0:02:51]} 11. cxb4 {[%clk 0:02:03]}  Bxb4+ {[%clk 0:02:51]} 12. Bd2 {[%clk 0:02:04]}  Bxd2+ {[%clk 0:02:52]} 13. Nxd2 {[%clk 0:02:04]}  b5 {[%clk 0:02:52]} 14. Nb2 {[%clk 0:02:04]}  O-O {[%clk 0:02:52]} 15. Nd3 {[%clk 0:01:57]}  Ba6 {[%clk 0:02:49]} 16. a3 {[%clk 0:01:54]}  Rfc8 {[%clk 0:02:48]} 17. Be2 {[%clk 0:01:52]}  Rc3 {[%clk 0:02:46]} 18. O-O {[%clk 0:01:45]}  Rac8 {[%clk 0:02:46]} 19. f5 {[%clk 0:01:45]}  Qb6 {[%clk 0:02:42]} 20. fxe6 {[%clk 0:01:14]}  fxe6 {[%clk 0:02:41]} 21. Qe1 {[%clk 0:01:12]}  b4 {[%clk 0:02:40]} 22. Qf2 {[%clk 0:01:06]}  Rf8 {[%clk 0:02:38]} 23. Qg3 {[%clk 0:00:58]}  bxa3 {[%clk 0:02:29]} 24. Ne1 {[%clk 0:00:41]} 0-1


[Site "https://www.chess.com"]

[Event "Titled Tuesday Blitz June 6 Late 2023"]
[White "Paravyan, David"]
[Black "Svane, Frederik"]
[WhiteFideId "4194985"]
[BlackFideId "12923044"]
[WhiteElo "2563"]
[BlackElo "2502"]
[Result "1-0"]
[Round "4"]
[TimeControl "180+2"]
[Date "2023.06.07"]
[WhiteClock "0:00:12"]
[BlackClock "0:00:01"]
[Board "5"]

1. d4 {[%clk 0:03:00]}  Nf6 {[%clk 0:03:00]} 2. c4 {[%clk 0:03:00]}  e6 {[%clk 0:03:01]} 3. Nc3 {[%clk 0:03:00]}  Bb4 {[%clk 0:03:00]} 4. e3 {[%clk 0:03:01]}  O-O {[%clk 0:02:59]} 5. Bd3 {[%clk 0:03:01]}  d5 {[%clk 0:03:00]} 6. a3 {[%clk 0:03:01]}  dxc4 {[%clk 0:03:00]} 7. Bxc4 {[%clk 0:03:01]}  Be7 {[%clk 0:03:01]} 8. Nf3 {[%clk 0:03:01]}  c5 {[%clk 0:03:00]} 9. O-O {[%clk 0:03:00]}  a6 {[%clk 0:03:01]} 10. dxc5 {[%clk 0:03:00]}  Bxc5 {[%clk 0:02:56]} 11. Bd3 {[%clk 0:03:01]}  b5 {[%clk 0:02:43]} 12. e4 {[%clk 0:02:49]}  Bb7 {[%clk 0:02:43]} 13. e5 {[%clk 0:02:49]}  Nfd7 {[%clk 0:02:40]} 14. Bxh7+ {[%clk 0:02:42]}  Kxh7 {[%clk 0:02:41]} 15. Ng5+ {[%clk 0:02:42]}  Kg6 {[%clk 0:02:41]} 16. Qd3+ {[%clk 0:02:26]}  f5 {[%clk 0:02:38]} 17. Qg3 {[%clk 0:02:23]}  Qe7 {[%clk 0:01:40]} 18. Ne2 {[%clk 0:01:55]}  f4 {[%clk 0:00:48]} 19. Qd3+ {[%clk 0:01:32]}  Kxg5 {[%clk 0:00:47]} 20. Nxf4 {[%clk 0:00:23]}  Rxf4 {[%clk 0:00:47]} 21. h4+ {[%clk 0:00:14]}  Kh5 {[%clk 0:00:08]} 22. Qh7+ {[%clk 0:00:13]}  Kg4 {[%clk 0:00:08]} 23. Qg6+ {[%clk 0:00:13]}  Kxh4 {[%clk 0:00:08]} 24. Bxf4 {[%clk 0:00:12]}  Nc6 {[%clk 0:00:01]} 25. Bg3# {[%clk 0:00:12]} 1-0


[Site "https://www.chess.com"]

[Event "Titled Tuesday Blitz June 6 Late 2023"]
[White "Keymer, Vincent"]
[Black "Lazavik, Denis"]
[WhiteFideId "12940690"]
[BlackFideId "13515110"]
[WhiteElo "2669"]
[BlackElo "2560"]
[Result "1/2-1/2"]
[Round "4"]
[TimeControl "180+2"]
[Date "2023.06.07"]
[WhiteClock "0:00:05"]
[BlackClock "0:00:06"]
[Board "6"]

1. Nf3 {[%clk 0:03:00]}  d5 {[%clk 0:02:59]} 2. e3 {[%clk 0:03:01]}  Nf6 {[%clk 0:02:59]} 3. c4 {[%clk 0:03:01]}  c6 {[%clk 0:02:54]} 4. Nc3 {[%clk 0:03:01]}  Bf5 {[%clk 0:02:54]} 5. cxd5 {[%clk 0:03:01]}  cxd5 {[%clk 0:02:55]} 6. Qb3 {[%clk 0:03:01]}  Bc8 {[%clk 0:02:55]} 7. Bb5+ {[%clk 0:03:01]}  Nc6 {[%clk 0:02:53]} 8. e4 {[%clk 0:03:01]}  e6 {[%clk 0:02:48]} 9. d3 {[%clk 0:02:56]}  Be7 {[%clk 0:02:45]} 10. e5 {[%clk 0:02:46]}  Nd7 {[%clk 0:02:44]} 11. d4 {[%clk 0:02:46]}  O-O {[%clk 0:02:39]} 12. Qd1 {[%clk 0:02:39]}  f6 {[%clk 0:02:35]} 13. exf6 {[%clk 0:02:39]}  Nxf6 {[%clk 0:02:31]} 14. O-O {[%clk 0:02:38]}  Bd7 {[%clk 0:02:31]} 15. Qe2 {[%clk 0:02:30]}  Bd6 {[%clk 0:02:28]} 16. Bg5 {[%clk 0:02:25]}  Qe8 {[%clk 0:02:25]} 17. Bh4 {[%clk 0:02:22]}  Nh5 {[%clk 0:02:24]} 18. Bg3 {[%clk 0:02:22]}  Rxf3 {[%clk 0:01:39]} 19. Bxc6 {[%clk 0:00:42]}  Rxg3 {[%clk 0:01:38]} 20. Bxd7 {[%clk 0:00:43]}  Rxg2+ {[%clk 0:01:37]} 21. Kxg2 {[%clk 0:00:44]}  Nf4+ {[%clk 0:01:34]} 22. Kh1 {[%clk 0:00:44]}  Qxd7 {[%clk 0:01:32]} 23. Qg4 {[%clk 0:00:45]}  Rf8 {[%clk 0:01:32]} 24. Rae1 {[%clk 0:00:35]}  Rf5 {[%clk 0:01:26]} 25. Re3 {[%clk 0:00:26]}  Qf7 {[%clk 0:01:17]} 26. Rg3 {[%clk 0:00:23]}  h5 {[%clk 0:01:04]} 27. Qd1 {[%clk 0:00:23]}  Ng6 {[%clk 0:00:58]} 28. Rgg1 {[%clk 0:00:17]}  Nh4 {[%clk 0:00:55]} 29. f4 {[%clk 0:00:14]}  Bxf4 {[%clk 0:00:50]} 30. Qd3 {[%clk 0:00:10]}  Bd6 {[%clk 0:00:32]} 31. Rxf5 {[%clk 0:00:11]}  Nxf5 {[%clk 0:00:33]} 32. Ne2 {[%clk 0:00:11]}  Qf6 {[%clk 0:00:33]} 33. Qf3 {[%clk 0:00:11]}  Qh4 {[%clk 0:00:32]} 34. Qg2 {[%clk 0:00:07]}  Kf7 {[%clk 0:00:23]} 35. Rf1 {[%clk 0:00:06]}  Ke7 {[%clk 0:00:20]} 36. Rxf5 {[%clk 0:00:05]}  exf5 {[%clk 0:00:20]} 37. Qxg7+ {[%clk 0:00:06]}  Ke8 {[%clk 0:00:20]} 38. Qg8+ {[%clk 0:00:06]}  Kd7 {[%clk 0:00:21]} 39. Qg1 {[%clk 0:00:01]}  Qe4+ {[%clk 0:00:20]} 40. Qg2 {[%clk 0:00:02]}  Ke6 {[%clk 0:00:18]} 41. h3 {[%clk 0:00:02]}  f4 {[%clk 0:00:14]} 42. Ng1 {[%clk 0:00:02]}  Qxg2+ {[%clk 0:00:09]} 43. Kxg2 {[%clk 0:00:02]}  Kf5 {[%clk 0:00:10]} 44. Kf3 {[%clk 0:00:03]}  Kg5 {[%clk 0:00:10]} 45. Kg2 {[%clk 0:00:03]}  Bc7 {[%clk 0:00:10]} 46. Ne2 {[%clk 0:00:02]}  a6 {[%clk 0:00:07]} 47. b3 {[%clk 0:00:02]}  Bd6 {[%clk 0:00:07]} 48. Ng1 {[%clk 0:00:03]}  Kf5 {[%clk 0:00:07]} 49. Kf3 {[%clk 0:00:03]}  Be7 {[%clk 0:00:07]} 50. Ne2 {[%clk 0:00:04]}  Bg5 {[%clk 0:00:07]} 51. Nc3 {[%clk 0:00:04]}  Ke6 {[%clk 0:00:06]} 52. Ne2 {[%clk 0:00:04]}  Kf5 {[%clk 0:00:05]} 53. Nc3 {[%clk 0:00:05]}  Ke6 {[%clk 0:00:05]} 54. Ne2 {[%clk 0:00:05]}  Kf5 {[%clk 0:00:06]} 1/2-1/2


[Site "https://www.chess.com"]

[Event "Titled Tuesday Blitz June 6 Late 2023"]
[White "Bryakin, Mikhail"]
[Black "Deac, Bogdan-Daniel"]
[WhiteFideId "4165314"]
[BlackFideId "1226380"]
[WhiteElo "2464"]
[BlackElo "2644"]
[Result "0-1"]
[Round "4"]
[TimeControl "180+2"]
[Date "2023.06.07"]
[WhiteClock "0:00:07"]
[BlackClock "0:00:05"]
[Board "9"]

1. c4 {[%clk 0:03:00]}  e6 {[%clk 0:02:59]} 2. Nc3 {[%clk 0:02:57]}  c5 {[%clk 0:02:59]} 3. Nf3 {[%clk 0:02:55]}  Nc6 {[%clk 0:02:59]} 4. d4 {[%clk 0:02:54]}  cxd4 {[%clk 0:02:59]} 5. Nxd4 {[%clk 0:02:55]}  Nf6 {[%clk 0:03:00]} 6. e4 {[%clk 0:02:53]}  Bc5 {[%clk 0:02:59]} 7. Nb3 {[%clk 0:02:51]}  Bb4 {[%clk 0:02:59]} 8. Bd3 {[%clk 0:02:51]}  Bxc3+ {[%clk 0:02:52]} 9. bxc3 {[%clk 0:02:51]}  d6 {[%clk 0:02:52]} 10. O-O {[%clk 0:02:50]}  O-O {[%clk 0:02:50]} 11. Be3 {[%clk 0:02:36]}  b6 {[%clk 0:02:44]} 12. f4 {[%clk 0:02:36]}  Nd7 {[%clk 0:02:39]} 13. Rf3 {[%clk 0:02:19]}  f5 {[%clk 0:01:49]} 14. exf5 {[%clk 0:02:04]}  exf5 {[%clk 0:01:49]} 15. Nd4 {[%clk 0:02:01]}  Nxd4 {[%clk 0:01:27]} 16. cxd4 {[%clk 0:01:55]}  d5 {[%clk 0:01:24]} 17. c5 {[%clk 0:01:14]}  Nf6 {[%clk 0:01:24]} 18. Rc1 {[%clk 0:01:11]}  Be6 {[%clk 0:01:17]} 19. Rf2 {[%clk 0:01:08]}  Ng4 {[%clk 0:00:52]} 20. Re2 {[%clk 0:01:06]}  Rc8 {[%clk 0:00:51]} 21. h3 {[%clk 0:01:00]}  Nf6 {[%clk 0:00:49]} 22. Rec2 {[%clk 0:01:00]}  Ne4 {[%clk 0:00:45]} 23. c6 {[%clk 0:00:43]}  Rc7 {[%clk 0:00:42]} 24. a4 {[%clk 0:00:41]}  Qd6 {[%clk 0:00:38]} 25. Ba6 {[%clk 0:00:32]}  Bf7 {[%clk 0:00:34]} 26. Qd3 {[%clk 0:00:28]}  Be8 {[%clk 0:00:30]} 27. Bb7 {[%clk 0:00:28]}  Rf6 {[%clk 0:00:30]} 28. Qa6 {[%clk 0:00:20]}  Qa3 {[%clk 0:00:30]} 29. Bf2 {[%clk 0:00:19]}  Nxf2 {[%clk 0:00:04]} 30. Kxf2 {[%clk 0:00:18]}  Qb4 {[%clk 0:00:05]} 31. Qxa7 {[%clk 0:00:08]}  Qxd4+ {[%clk 0:00:05]} 32. Kf1 {[%clk 0:00:09]}  Qxf4+ {[%clk 0:00:04]} 33. Kg1 {[%clk 0:00:08]}  Bxc6 {[%clk 0:00:04]} 34. Qb8+ {[%clk 0:00:07]}  Rf8 {[%clk 0:00:03]} 35. Qxc7 {[%clk 0:00:03]}  Qxc7 {[%clk 0:00:03]} 36. Bxc6 {[%clk 0:00:04]}  Qe5 {[%clk 0:00:04]} 37. Rd1 {[%clk 0:00:03]}  Qe3+ {[%clk 0:00:04]} 38. Kh1 {[%clk 0:00:03]}  d4 {[%clk 0:00:04]} 39. Bd5+ {[%clk 0:00:03]}  Kh8 {[%clk 0:00:04]} 40. Rcd2 {[%clk 0:00:04]}  f4 {[%clk 0:00:03]} 41. Rxd4 {[%clk 0:00:04]}  h6 {[%clk 0:00:04]} 42. Bf3 {[%clk 0:00:05]}  Qe5 {[%clk 0:00:04]} 43. Re4 {[%clk 0:00:05]}  Qf6 {[%clk 0:00:03]} 44. Rde1 {[%clk 0:00:06]}  Rf7 {[%clk 0:00:03]} 45. Re6 {[%clk 0:00:06]}  Qd4 {[%clk 0:00:02]} 46. Re8+ {[%clk 0:00:07]}  Kh7 {[%clk 0:00:02]} 47. Be4+ {[%clk 0:00:08]}  g6 {[%clk 0:00:03]} 48. Bf3 {[%clk 0:00:08]}  Rg7 {[%clk 0:00:03]} 49. R8e4 {[%clk 0:00:08]}  Qd2 {[%clk 0:00:04]} 50. R1e2 {[%clk 0:00:09]}  Qc1+ {[%clk 0:00:04]} 51. Re1 {[%clk 0:00:10]}  Qd2 {[%clk 0:00:04]} 52. R1e2 {[%clk 0:00:10]}  Qc3 {[%clk 0:00:04]} 53. Kh2 {[%clk 0:00:08]}  h5 {[%clk 0:00:05]} 54. h4 {[%clk 0:00:08]}  Qc7 {[%clk 0:00:05]} 55. Re5 {[%clk 0:00:08]}  Qd8 {[%clk 0:00:05]} 56. Rxh5+ {[%clk 0:00:07]}  gxh5 {[%clk 0:00:05]} 0-1


[Site "https://www.chess.com"]

[Event "Titled Tuesday Blitz June 6 Late 2023"]
[White "Perez Ponsa, Federico"]
[Black "Narayanan.S.L"]
[WhiteFideId "117927"]
[BlackFideId "5058422"]
[WhiteElo "2590"]
[BlackElo "2563"]
[Result "0-1"]
[Round "4"]
[TimeControl "180+2"]
[Date "2023.06.07"]
[WhiteClock "0:00:09"]
[BlackClock "0:01:59"]
[Board "11"]

1. Nf3 {[%clk 0:00:09]}  d6 {[%clk 0:02:59]} 2. e3 {[%clk 0:00:10]}  g6 {[%clk 0:02:58]} 3. d4 {[%clk 0:00:11]}  Bg7 {[%clk 0:02:58]} 4. Be2 {[%clk 0:00:12]}  Nf6 {[%clk 0:02:58]} 5. O-O {[%clk 0:00:12]}  O-O {[%clk 0:02:59]} 6. c4 {[%clk 0:00:13]}  Nc6 {[%clk 0:03:00]} 7. Nc3 {[%clk 0:00:14]}  e5 {[%clk 0:03:00]} 8. b3 {[%clk 0:00:12]}  Bg4 {[%clk 0:02:59]} 9. Bb2 {[%clk 0:00:12]}  Nd7 {[%clk 0:02:57]} 10. dxe5 {[%clk 0:00:12]}  dxe5 {[%clk 0:02:57]} 11. h3 {[%clk 0:00:12]}  Be6 {[%clk 0:02:56]} 12. Qc2 {[%clk 0:00:10]}  Nb4 {[%clk 0:02:55]} 13. Qc1 {[%clk 0:00:08]}  Nc5 {[%clk 0:02:56]} 14. Rd1 {[%clk 0:00:08]}  Qc8 {[%clk 0:02:52]} 15. Ba3 {[%clk 0:00:09]}  a5 {[%clk 0:02:52]} 16. Nd5 {[%clk 0:00:09]}  Bxd5 {[%clk 0:02:49]} 17. cxd5 {[%clk 0:00:09]}  Ne4 {[%clk 0:02:50]} 18. Bb2 {[%clk 0:00:05]}  Re8 {[%clk 0:02:50]} 19. a3 {[%clk 0:00:05]}  Na6 {[%clk 0:02:50]} 20. Bb5 {[%clk 0:00:05]}  Re7 {[%clk 0:02:50]} 21. Qc2 {[%clk 0:00:06]}  Nd6 {[%clk 0:02:50]} 22. Bf1 {[%clk 0:00:06]}  Qd7 {[%clk 0:02:34]} 23. Rac1 {[%clk 0:00:06]}  b6 {[%clk 0:02:31]} 24. Nd2 {[%clk 0:00:05]}  Nc5 {[%clk 0:02:31]} 25. b4 {[%clk 0:00:06]}  axb4 {[%clk 0:02:31]} 26. axb4 {[%clk 0:00:07]}  Na4 {[%clk 0:02:32]} 27. Ba1 {[%clk 0:00:08]}  h5 {[%clk 0:02:28]} 28. Ne4 {[%clk 0:00:08]}  Qd8 {[%clk 0:02:09]} 29. Nxd6 {[%clk 0:00:08]}  cxd6 {[%clk 0:02:10]} 30. Qc6 {[%clk 0:00:08]}  e4 {[%clk 0:02:04]} 31. Bxg7 {[%clk 0:00:08]}  Kxg7 {[%clk 0:02:05]} 32. Bb5 {[%clk 0:00:09]}  Rea7 {[%clk 0:02:00]} 33. Ra1 {[%clk 0:00:09]}  Rc8 {[%clk 0:02:00]} 34. Bxa4 {[%clk 0:00:07]}  Rxc6 {[%clk 0:01:59]} 35. Bxc6 {[%clk 0:00:06]}  Rxa1 {[%clk 0:01:58]} 36. Rxa1 {[%clk 0:00:07]}  Qf6 {[%clk 0:01:59]} 37. Rd1 {[%clk 0:00:08]}  Qb2 {[%clk 0:01:59]} 38. Rd4 {[%clk 0:00:08]}  Qb1+ {[%clk 0:01:56]} 39. Kh2 {[%clk 0:00:09]}  Qc2 {[%clk 0:01:57]} 40. Kg1 {[%clk 0:00:09]}  h4 {[%clk 0:01:57]} 41. b5 {[%clk 0:00:08]}  f5 {[%clk 0:01:57]} 42. Kh2 {[%clk 0:00:07]}  Qxf2 {[%clk 0:01:56]} 43. Ra4 {[%clk 0:00:07]}  Qg3+ {[%clk 0:01:57]} 44. Kh1 {[%clk 0:00:07]}  Qxe3 {[%clk 0:01:57]} 45. Ra7+ {[%clk 0:00:08]}  Kh6 {[%clk 0:01:58]} 46. Rd7 {[%clk 0:00:08]}  Qc1+ {[%clk 0:01:57]} 47. Kh2 {[%clk 0:00:08]}  Qf4+ {[%clk 0:01:58]} 48. Kg1 {[%clk 0:00:08]}  e3 {[%clk 0:01:59]} 49. Re7 {[%clk 0:00:09]}  Qf2+ {[%clk 0:01:59]} 0-1


[Site "https://www.chess.com"]

[Event "Titled Tuesday Blitz June 6 Late 2023"]
[White "Tejedor Fuente, Enrique"]
[Black "Makarian, Rudik"]
[WhiteFideId "2299100"]
[BlackFideId "44105681"]
[WhiteElo "2496"]
[BlackElo "2451"]
[Result "0-1"]
[Round "4"]
[TimeControl "180+2"]
[Date "2023.06.07"]
[WhiteClock "0:00:01"]
[BlackClock "0:00:05"]
[Board "13"]

1. d4 {[%clk 0:03:00]}  Nf6 {[%clk 0:02:58]} 2. Nf3 {[%clk 0:03:00]}  c5 {[%clk 0:02:58]} 3. e3 {[%clk 0:03:00]}  d5 {[%clk 0:02:58]} 4. b3 {[%clk 0:02:59]}  Nc6 {[%clk 0:02:55]} 5. Bb2 {[%clk 0:02:59]}  cxd4 {[%clk 0:02:56]} 6. exd4 {[%clk 0:02:59]}  g6 {[%clk 0:02:56]} 7. Bd3 {[%clk 0:02:55]}  Bg7 {[%clk 0:02:49]} 8. h3 {[%clk 0:02:55]}  O-O {[%clk 0:02:48]} 9. O-O {[%clk 0:02:53]}  Nb4 {[%clk 0:02:47]} 10. Be2 {[%clk 0:02:51]}  Bf5 {[%clk 0:02:46]} 11. Na3 {[%clk 0:02:51]}  Rc8 {[%clk 0:02:45]} 12. c3 {[%clk 0:02:50]}  Nc6 {[%clk 0:02:45]} 13. Nc2 {[%clk 0:02:48]}  h5 {[%clk 0:02:40]} 14. Ne3 {[%clk 0:02:48]}  e6 {[%clk 0:02:39]} 15. a3 {[%clk 0:02:45]}  Re8 {[%clk 0:02:37]} 16. Rc1 {[%clk 0:02:43]}  Bh6 {[%clk 0:02:34]} 17. Nxf5 {[%clk 0:02:39]}  exf5 {[%clk 0:02:34]} 18. Rc2 {[%clk 0:02:37]}  Ne4 {[%clk 0:02:34]} 19. c4 {[%clk 0:02:35]}  Bg7 {[%clk 0:02:24]} 20. c5 {[%clk 0:02:27]}  g5 {[%clk 0:02:17]} 21. b4 {[%clk 0:02:15]}  g4 {[%clk 0:02:17]} 22. hxg4 {[%clk 0:02:14]}  hxg4 {[%clk 0:02:18]} 23. Ne5 {[%clk 0:02:14]}  Qh4 {[%clk 0:02:08]} 24. Bb5 {[%clk 0:02:05]}  Re6 {[%clk 0:01:31]} 25. Bc1 {[%clk 0:01:55]}  Nxe5 {[%clk 0:01:27]} 26. dxe5 {[%clk 0:01:55]}  Bxe5 {[%clk 0:01:27]} 27. g3 {[%clk 0:01:54]}  Qh3 {[%clk 0:00:59]} 28. Bd7 {[%clk 0:01:44]}  Rd8 {[%clk 0:00:28]} 29. Bxe6 {[%clk 0:01:44]}  fxe6 {[%clk 0:00:29]} 30. f4 {[%clk 0:01:30]}  Bf6 {[%clk 0:00:22]} 31. Rh2 {[%clk 0:01:19]}  Qxg3+ {[%clk 0:00:22]} 32. Rg2 {[%clk 0:01:20]}  Qc3 {[%clk 0:00:22]} 33. Rf3 {[%clk 0:01:04]}  Qc4 {[%clk 0:00:16]} 34. Rh3 {[%clk 0:00:57]}  Rd7 {[%clk 0:00:12]} 35. Kh2 {[%clk 0:00:51]}  Rg7 {[%clk 0:00:12]} 36. Rh5 {[%clk 0:00:48]}  g3+ {[%clk 0:00:11]} 37. Rxg3 {[%clk 0:00:13]}  Nxg3 {[%clk 0:00:10]} 38. Rh3 {[%clk 0:00:08]}  Nf1+ {[%clk 0:00:06]} 39. Kh1 {[%clk 0:00:08]}  Qe4+ {[%clk 0:00:06]} 40. Qf3 {[%clk 0:00:08]}  Ng3+ {[%clk 0:00:06]} 41. Kg2 {[%clk 0:00:08]}  Qc2+ {[%clk 0:00:05]} 42. Kg1 {[%clk 0:00:03]}  Qxc1+ {[%clk 0:00:04]} 43. Kf2 {[%clk 0:00:02]}  Qd2+ {[%clk 0:00:05]} 44. Kg1 {[%clk 0:00:01]}  Bd4+ {[%clk 0:00:05]} 0-1


[Site "https://www.chess.com"]